bitfinex/quotes_ETHUSD_20250815
["timestamp","ask_amount","ask_price","bid_price","bid_amount"]
[1755261141698,0.45943168,4646.1,4645.1,0.00080001]
[1755261141931,1.0239896,4647.2,4645.1,0.00080001]
[1755261142131,0.02549171,4646.8,4645.1,0.00080001]
[1755261142460,2.70275983,4645.2,4645.1,0.00080001]
[1755261142631,0.5492,4645.2,4645.1,0.00080001]
[1755261143228,0.45943168,4645.9,4645.1,0.00080001]
[1755261143428,0.48492339,4645.9,4645.1,0.00080001]
[1755261143641,0.45943168,4646.2,4645.5,2.15262049]
[1755261143942,0.48692339,4646.3,4645.2,2.15275983]
[1755261144154,0.02749171,4646.3,4645.5,2.15261095]
[1755261144292,0.02749171,4646.3,4645.2,2.15275983]
[1755261144293,0.002,4646.3,4645.2,2.15275983]
[1755261144643,0.002,4646.3,4645.1,2.15359552]
[1755261144644,0.55,4646.1,4645.1,2.15359552]
[1755261144972,0.55,4646.1,4645.1,0.00080001]
[1755261145144,0.55,4646.2,4645.1,0.00080001]
[1755261145291,1.00943168,4646.2,4645.1,0.00080001]
[1755261145807,1.03492339,4646.1,4645.1,2.1536026]
[1755261146143,0.57549171,4646.1,4645.6,2.1525505]
[1755261146305,0.55,4646.1,4645.1,2.15356813]
[1755261146490,0.57549171,4646.1,4645.1,0.00080001]
[1755261146696,0.57549171,4646.1,4645.6,2.15256538]
[1755261146991,0.002,4646.3,4646.0,2.15234393]
[1755261147197,0.002,4646.3,4646.0,2.15234325]
[1755261147445,0.002,4646.3,4646.2,2.1522965]
[1755261147799,0.002,4646.3,4646.2,3.3790965]
[1755261148142,0.002,4646.3,4646.2,2.1522965]
[1755261148543,0.002,4646.3,4645.4,6.46]
[1755261148846,0.002,4646.3,4646.2,2.1522965]
[1755261149026,1e-08,4646.3,4646.2,2.1522965]
[1755261149194,1e-08,4646.9,4646.8,2.15201859]
[1755261149647,1e-08,4646.9,4645.4,0.72617]
[1755261149796,1e-08,4646.9,4645.1,2.15357668]
[1755261149797,1e-08,4646.9,4645.7,5.15252814]
[1755261149997,1e-08,4646.9,4646.5,2.15213863]
[1755261150224,1e-08,4646.9,4646.6,2.15210686]
[1755261150433,1e-08,4646.9,4645.6,0.8009]
[1755261150652,1e-08,4646.9,4645.7,2.15252814]
[1755261150939,1e-08,4646.9,4646.8,2.15201859]
[1755261151146,1e-08,4646.9,4645.9,2.15243548]
[1755261151309,1e-08,4646.9,4646.8,2.15201859]
[1755261151900,2.15206364,4646.8,4645.8,2.15243873]
[1755261152199,2.15221023,4646.4,4645.5,2.15258078]
[1755261152397,0.02549171,4646.7,4644.7,6.461]
[1755261152600,1e-08,4646.9,4645.1,0.02232807]
[1755261152815,1e-08,4646.9,4645.2,1.3732404]
[1755261153007,1e-08,4646.9,4646.8,2.15201859]
[1755261153222,1e-08,4646.9,4646.8,8.61101859]
[1755261153408,1e-08,4646.9,4646.4,3.0]
[1755261153609,1e-08,4646.9,4646.4,2.15218217]
[1755261153814,0.55,4646.7,4645.1,6.45980001]
[1755261154028,0.55,4646.5,4645.1,0.00080001]
[1755261154344,0.02549171,4646.5,4645.1,0.00080001]
[1755261154639,1e-08,4646.9,4645.2,0.51536972]
[1755261154797,0.02549172,4646.9,4645.1,0.00080001]
[1755261154997,0.4636,4646.8,4645.3,6.459]
[1755261155203,0.4636,4646.8,4645.7,2.15249168]
[1755261155204,0.57549171,4646.7,4645.7,2.15249168]
[1755261155435,0.55,4646.7,4645.1,0.00080001]
[1755261155649,1e-08,4646.9,4645.3,3.0]
[1755261155814,0.55000001,4646.9,4645.3,3.0]
[1755261156143,0.02549171,4646.8,4645.6,2.15255956]
[1755261156312,0.02549171,4646.8,4645.1,0.00080001]
[1755261156513,0.55,4646.7,4645.3,2.15271349]
[1755261156717,0.55000001,4646.9,4646.1,2.15232069]
[1755261156915,0.55000001,4646.9,4645.1,6.45980001]
[1755261157112,0.55000001,4646.9,4646.0,2.1523849]
[1755261157454,0.55000001,4646.9,4645.2,3.0]
[1755261157455,1e-08,4646.9,4645.3,0.02152713]
[1755261157615,1e-08,4646.9,4646.8,2.15201859]
[1755261158030,1e-08,4646.9,4646.8,8.61201859]
[1755261158216,1e-08,4646.9,4645.2,0.8009]
[1755261158543,0.55,4646.7,4645.3,6.46]
[1755261158745,1.225,4646.8,4645.3,6.46]
[1755261158746,0.55,4646.4,4645.3,6.46]
[1755261158950,0.55,4646.1,4645.1,0.00080001]
[1755261159241,0.02549171,4646.6,4645.1,2.15359675]
[1755261159440,0.55,4646.7,4645.1,0.00080001]
[1755261159641,0.02549171,4646.7,4646.1,2.15232865]
[1755261159939,0.02549171,4646.7,4645.1,0.00080001]
[1755261159940,0.55,4646.5,4645.2,2.15275682]
[1755261160169,0.55,4646.0,4645.1,0.00080001]
[1755261160373,0.55,4645.7,4645.1,0.00080001]
[1755261160574,2.70275983,4645.2,4645.1,0.00080001]
[1755261160733,2.72825154,4645.2,4645.1,0.00080001]
[1755261161069,3.95325154,4645.2,4645.1,0.00080001]
[1755261163076,1.80049171,4645.2,4645.1,0.00080001]
[1755261163658,3.92775983,4645.2,4645.1,0.00080001]
[1755261163857,3.95325154,4645.2,4645.1,0.00080001]
[1755261164531,6.92775983,4645.2,4645.1,0.00080001]
[1755261164735,7.38990688,4645.2,4645.1,0.00080001]
[1755261165186,6.92775983,4645.2,4645.1,0.00080001]
[1755261165674,4.775,4645.2,4645.1,0.00080001]
[1755261165888,6.16635983,4645.2,4645.1,0.00080001]
[1755261166046,0.847658,4645.9,4645.1,0.00080001]
[1755261166249,0.4636,4646.0,4645.1,0.00080001]
[1755261166250,0.46193061,4646.3,4645.1,0.00080001]
[1755261166578,0.02549171,4646.2,4645.1,0.00080001]
[1755261166734,0.91218777,4646.5,4646.4,2.15220385]
[1755261167045,0.91218777,4646.5,4646.4,0.0008]
[1755261167680,4.2893453,4646.5,4646.4,0.0008]
[1755261167847,7.86483701,4646.5,4646.4,0.0008]
[1755261168047,7.8393453,4646.5,4646.4,0.0008]
[1755261168345,0.91218777,4646.5,4646.4,0.0008]
[1755261168957,0.91218777,4646.5,4646.4,2.15300385]
[1755261169178,0.91218777,4646.5,4646.4,0.0008]
[1755261169781,1.46218777,4646.5,4646.4,0.0008]
[1755261169944,3.6143453,4646.5,4646.4,0.0008]
[1755261170145,1.46218777,4646.5,4646.4,0.0008]
[1755261170385,1.95127948,4646.5,4646.4,0.0008]
[1755261170688,1.46218777,4646.5,4646.4,0.0008]
[1755261170903,1.46218777,4646.5,4646.4,2.15300385]
[1755261171098,0.91218777,4646.5,4646.4,0.0008]
[1755261171327,0.00200001,4646.9,4646.6,2.15208873]
[1755261171464,0.042,4647.9,4646.4,1.2276]
[1755261171465,0.042,4647.9,4646.7,1.2268]
[1755261171656,0.042,4647.9,4647.6,2.15164816]
[1755261172362,0.042,4647.9,4647.6,2.96414816]
[1755261172611,0.042,4647.9,4647.6,3.39004816]
[1755261172946,0.002,4648.3,4648.2,2.15137042]
[1755261172947,1e-08,4648.3,4648.2,2.15137042]
[1755261173260,0.04,4649.9,4649.6,2.15072264]
[1755261173791,0.04,4650.9,4649.6,10.1055]
[1755261173792,1e-08,4650.9,4649.6,10.1055]
[1755261174099,0.46139357,4652.5,4648.4,5.167]
[1755261174100,0.022,4652.9,4649.7,5.54895]
[1755261174247,0.022,4652.9,4649.8,6.287]
[1755261174453,0.022,4652.9,4651.8,2.14970549]
[1755261174663,0.022,4652.9,4650.3,3.0]
[1755261174881,0.022,4652.9,4651.6,2.14978556]
[1755261175065,0.04749171,4652.9,4651.5,2.14980597]
[1755261175270,0.022,4652.9,4651.4,2.14989035]
[1755261175470,0.4485,4652.7,4650.1,0.8125]
[1755261175670,2.17521219,4651.8,4650.7,2.15017812]
[1755261175869,0.55,4651.7,4649.3,0.8125]
[1755261176073,0.55,4651.5,4649.4,3.0]
[1755261176446,0.02549171,4652.0,4650.8,2.15014559]
[1755261176650,0.02549171,4652.0,4649.5,0.8125]
[1755261176651,0.55,4651.8,4650.4,2.15032635]
[1755261176858,0.55,4650.6,4649.8,2.15062547]
[1755261177064,0.55,4650.4,4648.8,6.244]
[1755261177270,0.55,4649.7,4648.4,7.31824344]
[1755261177558,0.4485,4650.6,4648.4,7.31824344]
[1755261177559,0.57549171,4649.6,4648.4,5.167]
[1755261177881,0.55,4649.7,4648.4,7.31824956]
[1755261178185,0.4485,4649.6,4648.6,2.15114645]
[1755261178386,0.55,4650.5,4648.4,5.167]
[1755261178591,0.4485,4651.0,4649.1,3.04]
[1755261178752,0.4485,4651.0,4649.1,5.19093426]
[1755261178952,0.4485,4651.0,4649.1,0.04]
[1755261178953,0.02549171,4650.9,4649.1,0.04]
[1755261179151,0.55,4650.9,4650.0,2.15050277]
[1755261179378,0.4905,4651.9,4649.2,0.8125]
[1755261179692,0.4905,4651.9,4651.0,2.15005414]
[1755261179861,0.4905,4651.9,4650.5,8.35127328]
[1755261180218,0.4905,4651.9,4650.1,2.15048813]
[1755261180219,2.17519961,4651.8,4649.3,0.4259]
[1755261180420,2.15090768,4649.2,4647.6,2.57751657]
[1755261180621,1.02399171,4649.2,4647.3,0.8125]
[1755261180823,6.96689939,4649.2,4647.1,0.04]
[1755261181021,0.55,4649.1,4647.1,0.04]
[1755261181329,2.70137042,4648.2,4647.1,0.04]
[1755261181523,0.55,4648.0,4647.1,0.04]
[1755261181749,0.55,4648.0,4646.4,0.0008]
[1755261181750,2.70135753,4646.5,4646.4,0.0008]
[1755261182027,2.7022965,4646.2,4646.1,1e-08]
[1755261182232,2.70238915,4646.0,4645.9,0.001]
[1755261182411,5.72788086,4646.0,4645.9,0.001]
[1755261182582,6.94288915,4646.0,4645.9,0.001]
[1755261182783,1.7905,4646.0,4645.9,0.001]
[1755261182979,3.15088915,4646.0,4645.9,0.001]
[1755261183184,3.96838086,4646.0,4645.9,0.001]
[1755261183380,6.96838086,4646.0,4645.9,0.001]
[1755261183584,2.70262081,4645.5,4645.1,0.04000001]
[1755261183782,2.72811252,4645.5,4645.1,0.04000001]
[1755261184031,3.96861252,4645.5,4645.1,0.04000001]
[1755261184181,3.94312081,4645.5,4645.1,0.04000001]
[1755261184581,2.15223227,4646.4,4645.1,0.04000001]
[1755261184582,0.4485,4646.3,4645.1,0.04000001]
[1755261184798,2.17779691,4646.2,4645.1,0.04000001]
[1755261184996,0.57549171,4646.2,4645.1,0.04000001]
[1755261185197,0.4485,4647.1,4645.1,0.04000001]
[1755261185486,0.02549171,4647.0,4645.1,0.04000001]
[1755261186007,0.02549171,4647.0,4645.5,2.15260111]
[1755261186211,2.17742309,4647.0,4645.1,2.19278942]
[1755261186439,0.55,4646.9,4645.9,2.15243115]
[1755261186615,1.37085668,4648.0,4645.2,0.4259]
[1755261186814,0.92235668,4648.0,4645.5,0.4259]
[1755261186983,0.92235668,4648.0,4645.8,3.0]
[1755261187186,0.92235668,4648.0,4645.9,1.25992435]
[1755261187586,0.92235668,4648.0,4647.6,2.15160666]
[1755261187826,0.92235668,4648.0,4647.8,2.15155557]
[1755261188182,0.04,4648.9,4647.8,2.15155557]
[1755261188386,0.04,4648.9,4647.8,2.96405557]
[1755261188588,2.15134305,4648.3,4646.4,6.074]
[1755261188831,0.55,4647.8,4646.0,1.2384]
[1755261189038,0.55,4647.4,4646.1,3.0]
[1755261189201,0.55,4647.4,4645.3,1.2384]
[1755261189202,0.02549171,4647.3,4645.3,1.2384]
[1755261189396,0.55,4646.8,4645.5,6.063]
[1755261189636,0.02549171,4646.7,4644.1,0.041]
[1755261189833,2.70262081,4645.5,4644.1,0.041]
[1755261190017,3.94312081,4645.5,4644.1,0.041]
[1755261190236,3.96861252,4645.5,4644.1,0.041]
[1755261190533,6.96861252,4645.5,4645.4,1e-08]
[1755261190838,6.94312081,4645.5,4645.4,1e-08]
[1755261191040,0.9985,4645.5,4645.4,1e-08]
[1755261191245,2.70262081,4645.5,4645.4,1e-08]
[1755261191448,0.4485,4646.2,4645.4,1e-08]
[1755261191738,0.02549171,4646.1,4645.4,1e-08]
[1755261192039,0.55,4645.5,4645.4,1e-08]
[1755261192207,2.70262081,4645.5,4645.4,1e-08]
[1755261192413,6.96861252,4645.5,4645.4,1e-08]
[1755261192608,6.94312081,4645.5,4645.4,1e-08]
[1755261192839,2.70262081,4645.5,4645.4,1e-08]
[1755261193023,3.96861252,4645.5,4645.4,1e-08]
[1755261193209,0.55,4645.5,4645.4,1e-08]
[1755261193410,2.70262081,4645.5,4645.4,1e-08]
[1755261193737,7.21338289,4645.5,4645.4,1e-08]
[1755261194142,3.9985,4645.5,4645.4,1e-08]
[1755261194353,0.9985,4645.5,4645.4,1e-08]
[1755261194639,0.55,4645.5,4645.4,1e-08]
[1755261195598,0.57549171,4645.5,4645.4,1e-08]
[1755261195810,0.55,4645.5,4645.4,1e-08]
[1755261197131,0.002,4646.1,4645.4,1e-08]
[1755261197309,0.02549171,4646.0,4645.4,1e-08]
[1755261197514,0.002,4646.1,4646.0,2.15238915]
[1755261197912,0.002,4646.1,4646.0,3.3953742]
[1755261198231,0.002,4646.6,4646.5,2.15215753]
[1755261198943,0.002,4646.6,4646.1,3.0]
[1755261198944,0.002,4646.6,4646.0,3.0]
[1755261199144,0.002,4646.6,4646.4,2.15216364]
[1755261199309,0.002,4646.6,4646.5,2.15215753]
[1755261199643,0.002,4646.6,4646.1,3.0]
[1755261199843,0.002,4646.6,4645.7,3.0]
[1755261200147,0.002,4646.6,4646.5,2.15215753]
[1755261200512,0.002,4646.6,4645.7,3.0]
[1755261200848,0.002,4646.6,4646.5,2.15215753]
[1755261201344,0.002,4646.6,4646.5,3.39055753]
[1755261201505,0.002,4646.6,4646.5,2.15215753]
[1755261201852,0.002,4646.6,4646.5,8.04995753]
[1755261202348,0.002,4646.6,4646.5,2.15295753]
[1755261202648,0.002,4646.6,4646.5,8.02495753]
[1755261202866,1e-08,4646.6,4646.5,13.5884762]
[1755261203219,1e-08,4646.6,4646.5,7.7164762]
[1755261203460,1e-08,4646.6,4646.5,11.01595753]
[1755261203665,1e-08,4646.6,4646.5,2.15295753]
[1755261204168,1e-08,4646.6,4646.5,0.0008]
[1755261204478,1e-08,4646.6,4646.5,2.15295753]
[1755261204974,1e-08,4646.6,4646.5,6.39875753]
[1755261205152,1e-08,4646.6,4646.5,8.35545649]
[1755261205389,1e-08,4646.6,4646.5,2.15295753]
[1755261205560,1e-08,4646.6,4646.5,7.98195753]
[1755261206006,1e-08,4646.6,4646.5,2.15295753]
[1755261206170,1e-08,4646.6,4646.5,7.98195753]
[1755261206366,1e-08,4646.6,4646.5,2.15295753]
[1755261206673,1e-08,4646.6,4646.5,10.97295753]
[1755261207067,1e-08,4646.6,4646.5,10.96295753]
[1755261207466,1e-08,4646.6,4646.5,12.67914045]
[1755261207701,1e-08,4646.6,4646.5,10.95395753]
[1755261207874,1e-08,4646.6,4646.5,5.15295753]
[1755261208265,1e-08,4646.6,4646.5,10.94495753]
[1755261208466,1e-08,4646.6,4646.5,3.0008]
[1755261208695,1e-08,4646.6,4646.5,5.7838]
[1755261209069,1e-08,4646.6,4646.5,7.93595753]
[1755261209499,1e-08,4646.6,4646.5,2.15295753]
[1755261209699,1e-08,4646.6,4646.5,0.0008]
[1755261209901,1e-08,4646.6,4646.5,5.7688]
[1755261210104,1e-08,4646.6,4646.5,7.92095753]
[1755261210691,1e-08,4646.6,4646.5,2.15295753]
[1755261210893,1e-08,4646.6,4646.5,10.91295753]
[1755261211114,1e-08,4647.1,4647.0,2.15192597]
[1755261211709,1e-08,4647.1,4647.0,6.39772597]
[1755261212109,0.002,4648.0,4647.1,5.15187966]
[1755261212313,0.002,4648.0,4647.8,2.15155557]
[1755261212521,1e-08,4647.9,4647.8,2.15155557]
[1755261212699,1e-08,4647.9,4647.8,7.87855557]
[1755261212910,1e-08,4648.0,4647.9,2.15150928]
[1755261213104,0.04,4648.9,4648.8,2.15109275]
[1755261213336,0.04,4648.9,4648.8,7.87209275]
[1755261213525,0.04,4648.9,4647.2,1.2458]
[1755261213724,0.55,4648.8,4647.4,5.15174075]
[1755261213952,0.02549171,4648.7,4646.3,8.5660488]
[1755261214138,0.02549171,4648.7,4647.0,3.0]
[1755261214315,0.55,4648.8,4646.7,5.15204115]
[1755261214632,0.55,4648.6,4647.9,2.15149357]
[1755261214834,0.55,4648.8,4647.9,2.15149357]
[1755261214835,0.57549171,4648.8,4648.0,5.703]
[1755261215030,0.55,4648.8,4647.8,2.15151343]
[1755261215364,0.55,4648.8,4646.4,3.0]
[1755261215365,0.55,4648.6,4646.4,3.0]
[1755261215658,0.55,4647.8,4647.0,2.15192042]
[1755261215884,0.55,4647.8,4646.1,0.04]
[1755261215885,1.23609171,4647.7,4646.1,0.04]
[1755261216148,0.55,4646.6,4646.1,0.04]
[1755261216308,2.72760293,4646.6,4646.1,0.04]
[1755261216505,1.7606,4646.6,4646.1,0.04]
[1755261217152,0.55,4646.6,4646.4,5.677]
[1755261217358,0.55,4647.2,4647.0,2.151924]
[1755261217644,0.7636,4648.1,4647.1,5.673]
[1755261218049,0.7636,4648.1,4647.5,2.15164882]
[1755261218248,0.7636,4648.1,4647.1,5.673]
[1755261218553,0.8036,4648.9,4647.1,5.673]
[1755261218754,0.447,4648.8,4647.1,5.673]
[1755261218912,0.55,4648.7,4647.7,2.15158043]
[1755261219113,0.447,4648.8,4647.8,2.15154381]
[1755261219539,0.04,4648.9,4648.1,2.15141065]
[1755261219753,0.04,4648.9,4648.3,2.15132414]
[1755261220126,0.04,4648.9,4648.3,5.88159762]
[1755261221050,0.04,4648.9,4648.3,5.15132414]
[1755261221251,1e-08,4648.4,4648.3,10.77032414]
[1755261221553,1e-08,4648.4,4648.3,11.59022414]
[1755261221765,1e-08,4648.4,4648.3,11.59102414]
[1755261222270,1e-08,4648.4,4648.3,5.15212414]
[1755261222463,1e-08,4648.4,4648.3,10.76712414]
[1755261222663,1e-08,4648.4,4648.3,12.05897762]
[1755261222837,1e-08,4648.4,4648.3,12.87887762]
[1755261223237,1e-08,4648.4,4648.3,12.05897762]
[1755261223480,1e-08,4648.4,4648.3,10.74912414]
[1755261223838,0.03920001,4648.9,4648.8,2.15109275]
[1755261224275,0.03920001,4648.9,4648.8,7.72909275]
[1755261225682,0.03920001,4648.9,4648.7,2.15113902]
[1755261225883,0.03920001,4648.9,4648.8,7.70609275]
[1755261226539,0.03920001,4648.9,4648.8,10.70609275]
[1755261226744,0.03920001,4648.9,4648.8,11.99181837]
[1755261226946,1e-08,4649.9,4649.8,2.15063013]
[1755261227144,0.447,4652.0,4650.8,2.15016771]
[1755261227371,0.02549171,4652.8,4650.9,3.0]
[1755261227684,0.022,4652.9,4651.7,3.0]
[1755261227988,0.022,4652.9,4652.3,2.14947445]
[1755261228287,1e-08,4652.4,4652.3,10.70396919]
[1755261228461,1e-08,4652.4,4652.3,10.68247445]
[1755261229142,1e-08,4652.4,4652.3,5.14947445]
[1755261229356,1e-08,4652.4,4652.3,10.66847445]
[1755261231500,1.21060001,4652.4,4650.2,2.1504425]
[1755261231657,1.78609171,4652.3,4650.8,5.492]
[1755261231857,0.55,4652.1,4650.8,5.492]
[1755261232075,0.55,4652.1,4650.8,8.492]
[1755261232359,0.02549171,4652.0,4650.8,8.492]
[1755261232561,0.02549171,4652.0,4650.1,0.04]
[1755261232562,0.55,4651.9,4650.1,0.04]
[1755261232874,1.1942,4651.8,4650.1,0.04]
[1755261233072,3.0,4651.9,4650.3,2.15036658]
[1755261233073,2.14993547,4651.4,4650.3,2.15036658]
[1755261233265,0.55,4651.2,4650.3,2.15036658]
[1755261233598,0.4504,4651.3,4650.4,5.473]
[1755261234093,1e-08,4652.4,4650.4,5.473]
[1755261234094,0.55000001,4652.4,4651.5,2.14983477]
[1755261234300,0.55000001,4652.4,4650.5,3.02150306]
[1755261234301,0.55,4652.2,4651.6,5.461]
[1755261235284,0.55,4652.2,4651.6,5.447]
[1755261236139,0.55,4652.0,4651.1,5.439]
[1755261236279,0.02549171,4651.9,4650.8,5.432]
[1755261236479,2.69998804,4651.2,4650.7,5.432]
[1755261236679,1.19238344,4651.9,4650.6,5.432]
[1755261236997,0.55,4651.2,4650.6,5.432]
[1755261237896,0.55,4651.2,4650.6,2.15021838]
[1755261238110,0.55,4651.2,4650.7,7.56420445]
[1755261238316,0.55,4651.0,4650.2,2.15044514]
[1755261238482,0.55,4651.0,4650.1,0.04]
[1755261238483,0.55,4651.0,4650.3,5.41]
[1755261239182,0.02549171,4652.0,4650.4,3.0]
[1755261239387,0.4504,4652.6,4650.5,2.17180947]
[1755261239625,0.55000001,4652.4,4650.5,0.02150306]
[1755261239797,1e-08,4652.4,4652.3,2.14947445]
[1755261240007,1e-08,4652.4,4652.1,5.405]
[1755261240231,1e-08,4652.4,4650.7,0.7817]
[1755261240452,1e-08,4652.4,4651.8,2.14970218]
[1755261240650,0.55000001,4652.4,4652.1,2.14954432]
[1755261240820,1e-08,4652.4,4651.8,5.399]
[1755261241223,1e-08,4652.4,4652.1,2.14954446]
[1755261241625,1e-08,4652.4,4652.3,5.14947445]
[1755261241815,1e-08,4652.5,4652.3,5.14947445]
[1755261242016,0.022,4652.9,4652.8,2.14924346]
[1755261242222,0.022,4652.9,4652.8,10.53324346]
[1755261242871,0.002,4653.3,4653.2,2.14905871]
[1755261243031,1e-08,4653.8,4653.2,2.14905871]
[1755261243237,1e-08,4653.9,4653.8,2.14878164]
[1755261243553,0.02,4654.9,4654.8,2.14832001]
[1755261243870,0.02,4654.9,4654.8,10.51532001]
[1755261244018,0.02,4654.9,4654.8,7.51532001]
[1755261245324,1e-08,4654.9,4654.8,10.51532001]
[1755261245650,1e-08,4654.9,4654.8,12.5553489]
[1755261246363,1e-08,4654.9,4654.8,10.49432001]
[1755261247074,1e-08,4654.9,4653.8,5.162]
[1755261247231,1e-08,4654.9,4654.8,2.14832001]
[1755261247419,1e-08,4654.9,4654.8,7.47632001]
[1755261247622,1e-08,4654.9,4653.8,5.162]
[1755261247837,1e-08,4654.9,4653.9,5.328]
[1755261248093,1e-08,4654.9,4654.0,3.0]
[1755261248279,1e-08,4654.9,4652.1,5.179]
[1755261248280,1.2938,4654.8,4652.1,5.179]
[1755261248572,0.65286088,4654.7,4652.5,5.14938205]
[1755261248755,0.55,4654.5,4652.1,5.179]
[1755261248930,1.1942,4654.6,4652.4,5.309]
[1755261248931,0.55,4653.9,4652.4,5.309]
[1755261249128,0.02549171,4653.8,4652.5,5.308]
[1755261249375,1e-08,4654.9,4652.5,5.308]
[1755261249376,1e-08,4654.9,4652.6,4.75997335]
[1755261249523,1e-08,4654.9,4653.9,2.14870585]
[1755261249736,0.4504,4654.8,4653.8,2.14874009]
[1755261249951,0.4504,4654.8,4653.8,5.323]
[1755261249952,0.55,4654.7,4653.8,5.323]
[1755261250569,0.55,4654.7,4653.8,7.47176797]
[1755261250792,0.55,4654.7,4653.8,5.323]
[1755261251097,1e-08,4654.9,4653.8,5.323]
[1755261251389,1e-08,4654.9,4654.0,2.14868929]
[1755261251592,1e-08,4654.9,4654.1,0.02148643]
[1755261251795,1e-08,4654.9,4653.8,5.323]
[1755261252446,1e-08,4654.9,4654.8,2.14832001]
[1755261252649,0.02,4655.9,4654.8,5.286]
[1755261252650,0.01920001,4655.9,4654.8,5.286]
[1755261252849,0.01920001,4655.9,4655.8,2.14785858]
[1755261253098,0.01920001,4655.9,4655.8,7.43185858]
[1755261253392,0.01920001,4655.9,4655.8,5.284]
[1755261253760,0.01920001,4655.9,4654.3,8.159]
[1755261253761,1.21340001,4655.9,4654.4,2.14850464]
[1755261253965,1.21340001,4655.9,4654.5,5.273]
[1755261254160,1.23889172,4655.9,4654.5,5.273]
[1755261254352,0.55,4655.8,4654.5,5.273]
[1755261254680,0.55,4655.5,4654.6,2.14841232]
[1755261254886,1.0004,4655.4,4654.5,5.273]
[1755261255202,0.55,4655.0,4654.5,5.273]
[1755261255362,0.55,4654.7,4654.5,5.273]
[1755261255718,2.14832474,4654.8,4653.7,5.252]
[1755261255719,0.55,4654.5,4653.7,5.252]
[1755261255870,0.55,4654.3,4653.4,5.252]
[1755261256069,0.55,4653.8,4653.1,0.02]
[1755261256271,0.02549171,4653.7,4653.1,0.02]
[1755261256494,0.02549171,4653.7,4652.0,5.243]
[1755261256495,0.55,4653.5,4652.0,5.243]
[1755261256808,0.55,4652.7,4652.0,5.243]
[1755261257008,0.02549171,4653.4,4652.0,5.243]
[1755261257009,0.45874939,4653.4,4652.0,5.243]
[1755261257211,0.55,4653.1,4652.1,2.16956156]
[1755261257505,0.55,4653.3,4652.1,0.02]
[1755261257717,0.55,4652.9,4652.1,0.02]
[1755261258068,0.02549171,4652.8,4652.1,0.02]
[1755261258267,0.55,4652.7,4652.1,0.02]
[1755261258502,1.7442,4652.7,4652.1,0.02]
[1755261258715,0.55,4652.8,4652.1,0.02]
[1755261259020,2.699386,4652.5,4652.1,0.02]
[1755261259308,0.55,4652.4,4652.1,0.02]
[1755261259610,1.76969171,4652.4,4652.1,0.02]
[1755261259812,1.7442,4652.4,4652.1,0.02]
[1755261260010,1.76969171,4652.4,4652.1,0.02]
[1755261260511,1.7442,4652.4,4652.1,0.02]
[1755261261314,0.4504,4652.4,4652.1,0.02]
[1755261261615,3.89362825,4652.4,4652.3,0.0018]
[1755261261811,3.89362825,4652.4,4651.8,0.001]
[1755261261812,2.69958539,4652.1,4651.8,0.001]
[1755261262043,2.6999828,4651.2,4650.1,0.04]
[1755261262202,2.72547451,4651.2,4650.1,0.04]
[1755261262406,3.96857451,4651.2,4650.1,0.04]
[1755261262742,3.9430828,4651.2,4650.1,0.04]
[1755261263044,3.18727451,4651.2,4650.1,0.04]
[1755261263202,3.96857451,4651.2,4650.1,0.04]
[1755261263537,0.55,4651.2,4650.6,2.15025613]
[1755261263708,0.55,4651.2,4650.4,2.15033635]
[1755261263910,0.55,4651.2,4650.1,0.04]
[1755261264113,0.55,4651.2,4650.9,2.1501202]
[1755261264319,0.4618,4651.6,4650.1,0.04]
[1755261264516,0.57549171,4651.5,4650.1,0.04]
[1755261264701,2.6999828,4651.2,4650.1,0.04]
[1755261264905,0.02549171,4651.2,4650.1,0.04]
[1755261265143,0.4618,4651.1,4650.1,0.04]
[1755261265327,0.55,4651.0,4650.1,0.04]
[1755261265685,2.15012148,4650.9,4650.1,0.04]
[1755261265852,2.1501617,4650.9,4650.1,0.04]
[1755261266003,0.55,4651.0,4650.1,0.04]
[1755261266004,0.5492,4651.3,4650.3,2.15036534]
[1755261266206,2.15003627,4651.1,4650.1,0.04]
[1755261266504,0.02549171,4651.0,4650.1,0.04]
[1755261267101,2.15026016,4650.7,4650.1,0.04]
[1755261267304,0.4618,4651.1,4650.1,0.04]
[1755261267305,1.26859171,4650.6,4650.1,0.04]
[1755261267544,1.2431,4650.5,4650.1,0.04]
[1755261267745,2.17586615,4650.4,4650.1,0.04]
[1755261267944,2.15044514,4650.2,4650.1,0.04]
[1755261268110,2.72593685,4650.2,4650.1,0.04]
[1755261268310,3.96903685,4650.2,4650.1,0.04]
[1755261268907,4.58097624,4650.2,4650.1,0.04]
[1755261269104,4.55548453,4650.2,4650.1,0.04]
[1755261269332,7.55548453,4650.2,4650.1,0.04]
[1755261269705,6.94354514,4650.2,4650.1,0.04]
[1755261269904,3.16224514,4650.2,4650.1,0.04]
[1755261270136,3.94354514,4650.2,4650.1,0.04]
[1755261270563,0.4618,4650.8,4650.1,0.04]
[1755261270702,2.61199164,4650.8,4650.1,0.04]
[1755261270908,0.7813,4651.0,4650.1,0.04]
[1755261271106,2.14998782,4651.2,4650.1,0.04]
[1755261271332,0.55,4651.3,4650.1,2.19048289]
[1755261271550,0.4618,4651.4,4650.1,0.04]
[1755261271857,2.15025007,4650.7,4650.1,0.04]
[1755261272027,0.02549171,4650.7,4650.1,0.04]
[1755261272346,0.55,4650.4,4650.1,0.04]
[1755261272650,2.15044514,4650.2,4650.1,0.04]
[1755261272951,0.02549171,4650.7,4650.1,0.04]
[1755261273161,0.4618,4651.0,4650.1,0.04]
[1755261273312,0.55,4651.0,4650.1,0.04]